bitfinex/quotes_SOLUSD_20241220
["timestamp","ask_amount","ask_price","bid_price","bid_amount"]
[1734703256349,39.72121332,188.09,187.99,39.72121332]
[1734703256533,39.72121332,188.07,187.99,39.72121332]
[1734703256930,20.0,188.04,187.97,39.72121332]
[1734703257143,39.72121332,188.02,187.93,39.72121332]
[1734703257328,39.72121332,188.06,187.97,39.72121332]
[1734703257521,39.72121332,188.06,187.99,39.72121332]
[1734703257747,39.72121332,188.08,187.99,39.72121332]
[1734703258246,39.72121332,188.06,187.89,6.4185]
[1734703258421,39.72121332,188.06,187.98,39.72121332]
[1734703258621,13.41289,188.15,187.89,6.4185]
[1734703258622,39.72121332,188.04,187.96,39.72121332]
[1734703258844,39.72121332,188.02,187.94,39.72121332]
[1734703259038,20.0,187.97,187.92,39.72121332]
[1734703259243,20.0,187.97,187.82,21.323944]
[1734703259244,20.0,187.97,187.9,39.72121332]
[1734703259439,39.72121332,188.0,187.9,39.72121332]
[1734703259663,39.72121332,188.02,187.94,39.72121332]
[1734703259944,33.2865,188.17,187.98,39.72121332]
[1734703260150,39.72121332,188.08,188.0,39.72121332]
[1734703260331,39.72121332,188.02,187.87,0.6990511]
[1734703260650,39.72121332,187.98,187.9,39.72121332]
[1734703260855,39.72121332,188.0,187.9,39.72121332]
[1734703261420,39.72121332,188.0,187.92,39.72121332]
[1734703261520,39.72121332,188.02,187.94,39.72121332]
[1734703261729,59.72121332,188.04,187.94,39.72121332]
[1734703262051,39.72121332,188.0,187.9,39.72121332]
[1734703262249,39.72121332,187.98,187.9,39.72121332]
[1734703262445,20.0,188.04,187.78,21.327563]
[1734703262446,20.0,187.89,187.78,21.327563]
[1734703262631,39.72121332,187.85,187.78,21.327563]
[1734703263142,39.72121332,187.87,187.79,39.72121332]
[1734703263246,59.72121332,187.89,187.79,39.72121332]
[1734703263446,39.72121332,187.87,187.79,39.72121332]
[1734703263650,39.72121332,187.85,187.75,39.72121332]
[1734703263853,39.72121332,187.85,187.77,39.72121332]
[1734703264161,39.72121332,187.85,187.75,39.72121332]
[1734703264330,39.72121332,187.85,187.71,0.79865978]
[1734703264331,39.72121332,187.83,187.68,0.6990511]
[1734703264552,39.72121332,187.83,187.73,39.72121332]
[1734703264932,39.72121332,187.83,187.75,39.72121332]
[1734703265138,39.72121332,187.81,187.68,0.6990511]
[1734703265351,39.72121332,187.83,187.75,39.72121332]
[1734703265657,39.72121332,187.83,187.69,0.7989404]
[1734703265658,39.72121332,187.79,187.7,39.72121332]
[1734703265956,39.72121332,187.79,187.72,39.72121332]
[1734703266332,39.72121332,187.75,187.68,0.6990511]
[1734703266736,39.72121332,187.75,187.68,40.42026442]
[1734703266956,39.72121332,187.77,187.68,40.42026442]
[1734703267533,39.72121332,187.79,187.7,39.72121332]
[1734703268155,39.72121332,187.77,187.68,40.42026442]
[1734703268328,39.72121332,187.75,187.68,0.6990511]
[1734703268543,39.72121332,187.75,187.68,40.42026442]
[1734703268854,39.72121332,187.81,187.72,39.72121332]
[1734703269038,39.72121332,187.83,187.75,0.12549]
[1734703269358,39.72121332,187.81,187.74,39.72121332]
[1734703269653,39.72121332,187.83,187.74,39.72121332]
[1734703269850,13.2991,187.99,187.8,0.12549]
[1734703270038,8.4345,188.0,187.8,0.12549]
[1734703270039,39.72121332,187.88,187.81,39.72121332]
[1734703270229,39.72121332,187.84,187.75,39.72121332]
[1734703271266,39.72121332,187.81,187.73,39.72121332]
[1734703271565,39.72121332,187.77,187.68,0.6990511]
[1734703271810,39.72121332,187.75,187.68,0.6990511]
[1734703272056,39.72121332,187.79,187.71,39.72121332]
[1734703272353,39.72121332,187.79,187.61,2.093]
[1734703272354,48.03,187.64,187.35,8.1298]
[1734703272553,20.0,187.51,187.31,21.04724563]
[1734703272853,20.0,187.51,187.3,0.6990511]
[1734703272854,39.72121332,187.32,187.3,0.6990511]
[1734703273635,39.72121332,187.32,187.3,0.34952555]
[1734703274638,39.72121332,187.34,187.3,0.34952555]
[1734703274839,0.79893461,187.33,187.3,0.34952555]
[1734703275138,0.79893461,187.32,187.3,0.34952555]
[1734703275339,39.72121332,187.32,187.3,0.34952555]
[1734703275668,39.72121332,187.38,187.2,6.0788]
[1734703275837,39.72121332,187.32,187.22,39.72121332]
[1734703276367,39.72121332,187.3,187.2,45.80001332]
[1734703276566,0.79893461,187.29,187.22,39.72121332]
[1734703276768,39.72121332,187.32,187.22,39.72121332]
[1734703277060,39.72121332,187.32,187.24,39.72121332]
[1734703277382,39.72121332,187.32,187.22,39.90682132]
[1734703277656,39.72121332,187.36,187.26,39.72121332]
[1734703277838,39.72121332,187.47,187.22,0.185608]
[1734703277839,0.79893461,187.35,187.29,0.12549]
[1734703278039,0.79893461,187.37,187.3,39.72121332]
[1734703278246,39.72121332,187.4,187.31,0.12549]
[1734703278461,39.72121332,187.42,187.35,20.0]
[1734703278654,0.79893461,187.41,187.36,0.12549]
[1734703279060,0.79893461,187.43,187.36,0.12549]
[1734703279258,39.72121332,187.46,187.38,0.12549]
[1734703279454,39.72121332,187.46,187.38,39.72121332]
[1734703279671,39.72121332,187.42,187.37,20.0]
[1734703279834,0.28903461,187.41,187.32,39.72121332]
[1734703280036,39.72121332,187.4,187.3,39.72121332]
[1734703280247,39.72121332,187.4,187.33,20.0]
[1734703280248,0.28903461,187.39,187.33,20.0]
[1734703280539,39.72121332,187.38,187.3,39.72121332]
[1734703280640,0.28903461,187.37,187.3,39.72121332]
[1734703280841,0.28903461,187.37,187.31,0.12549]
[1734703281461,39.72121332,187.42,187.33,0.12549]
[1734703281766,0.28903461,187.41,187.33,0.12549]
[1734703282650,0.28903461,187.41,187.35,20.12549]
[1734703282888,39.72121332,187.38,187.29,39.72121332]
[1734703283082,0.28903461,187.37,187.32,20.0]
[1734703283887,0.28903461,187.39,187.32,20.0]
[1734703284048,39.72121332,187.35,187.26,39.72121332]
[1734703284388,39.72121332,187.41,187.3,39.72121332]
[1734703284541,0.28903461,187.4,187.3,39.72121332]
[1734703284745,0.28903461,187.4,187.31,0.12549]
[1734703285044,0.28903461,187.4,187.32,39.72121332]
[1734703285849,0.28903461,187.4,187.35,20.0]
[1734703285955,0.28903461,187.42,187.35,20.0]
[1734703287193,39.72121332,187.39,187.35,20.0]
[1734703287490,0.28903461,187.42,187.35,20.0]
[1734703287491,39.72121332,187.41,187.35,20.0]
[1734703287695,0.28903461,187.4,187.35,20.0]
[1734703287980,0.28903461,187.4,187.3,39.72121332]
[1734703287981,39.72121332,187.39,187.3,39.72121332]
[1734703288169,0.28903461,187.38,187.3,39.72121332]
[1734703288596,39.72121332,187.39,187.31,0.12549]
[1734703288758,0.28903461,187.38,187.31,0.12549]
[1734703289265,39.72121332,187.47,187.33,0.12549]
[1734703289266,39.72121332,187.41,187.33,0.12549]
[1734703289582,0.28903461,187.4,187.33,0.12549]
[1734703289960,0.28903461,187.4,187.35,20.0]
[1734703290786,39.72121332,187.37,187.3,39.72121332]
[1734703290957,0.28903461,187.36,187.28,39.72121332]
[1734703291152,0.28903461,187.36,187.3,39.72121332]
[1734703291669,0.28903461,187.38,187.3,39.72121332]
[1734703292263,0.28903461,187.38,187.31,0.12549]
[1734703292849,0.28903461,187.38,187.23,0.185608]
[1734703292850,39.72121332,187.32,187.23,0.185608]
[1734703293188,0.28903461,187.31,187.25,39.72121332]
[1734703293397,0.28903461,187.33,187.25,39.72121332]
[1734703293778,0.28903461,187.33,187.27,39.72121332]
[1734703293975,0.28903461,187.35,187.27,39.72121332]
[1734703294599,39.72121332,187.34,187.25,39.72121332]
[1734703294871,0.28903461,187.33,187.25,39.72121332]
[1734703295004,39.72121332,187.3,187.23,0.185608]
[1734703295194,0.28903461,187.29,187.23,0.185608]
[1734703295522,39.72121332,187.34,187.25,39.72121332]
[1734703295816,0.28903461,187.33,187.27,39.72121332]
[1734703296610,0.28903461,187.35,187.27,39.72121332]
[1734703297900,39.72121332,187.28,187.23,0.185608]
[1734703298116,39.72121332,187.29,187.23,0.185608]
[1734703298117,39.72121332,187.24,187.23,0.185608]
[1734703298906,20.0,187.24,187.23,0.185608]
[1734703299105,20.28903461,187.24,187.23,0.185608]
[1734703299414,39.72121332,187.28,187.11,39.72121332]
[1734703299415,20.0,187.25,187.11,39.72121332]
[1734703299599,0.28903461,187.27,187.21,39.72121332]
[1734703299801,0.28903461,187.27,187.23,39.72121332]
[1734703300096,0.28903461,187.31,187.23,39.72121332]
[1734703300299,0.28903461,187.31,187.24,0.12549]
[1734703300611,0.28903461,187.31,187.23,39.72121332]
[1734703301578,20.28903461,187.31,187.25,39.72121332]
[1734703302505,0.28903461,187.31,187.25,39.72121332]
[1734703302703,0.28903461,187.33,187.25,39.72121332]
[1734703303377,0.28903461,187.33,187.26,0.12549]
[1734703303688,0.28903461,187.33,187.27,39.72121332]
[1734703303882,0.28903461,187.35,187.27,39.72121332]
[1734703305180,0.28903461,187.35,187.29,39.72121332]
[1734703305480,0.28903461,187.37,187.33,39.72121332]
[1734703305677,39.72121332,187.38,187.28,0.12549]
[1734703305905,0.28903461,187.37,187.29,39.72121332]
[1734703306617,0.28903461,187.37,187.31,39.72121332]
[1734703306783,0.28903461,187.39,187.31,39.72121332]
[1734703307718,0.28903461,187.39,187.33,39.72121332]
[1734703307889,0.28903461,187.41,187.33,39.72121332]
[1734703308200,0.28903461,187.41,187.35,39.72121332]
[1734703308399,0.28903461,187.43,187.35,39.72121332]
[1734703309000,0.28903461,187.43,187.37,39.72121332]
[1734703309197,0.28903461,187.45,187.37,39.72121332]
[1734703309614,39.72121332,187.44,187.37,39.72121332]
[1734703309814,0.28903461,187.43,187.37,39.72121332]
[1734703310184,0.28903461,187.43,187.36,0.12549]
[1734703310528,39.72121332,187.4,187.27,20.0]
[1734703310730,0.28903461,187.39,187.35,20.0]
[1734703310893,39.72121332,187.42,187.35,20.0]
[1734703311223,0.28903461,187.41,187.35,20.0]
[1734703311995,39.72121332,187.4,187.35,20.0]
[1734703312184,0.28903461,187.39,187.36,0.12549]
[1734703312385,39.72121332,187.42,187.36,0.12549]
[1734703312386,0.28903461,187.41,187.36,0.12549]
[1734703312586,0.28903461,187.41,187.37,39.72121332]
[1734703312818,0.28903461,187.45,187.37,39.72121332]
[1734703313731,0.28903461,187.45,187.39,39.72121332]
[1734703313890,39.72121332,187.46,187.37,39.72121332]
[1734703314095,0.28903461,187.45,187.37,39.72121332]
[1734703314406,0.28903461,187.45,187.39,39.72121332]
[1734703314939,0.28903461,187.45,187.41,39.72121332]
[1734703315097,0.28903461,187.47,187.41,39.72121332]
[1734703315825,0.28903461,187.47,187.3,2.16466425]
[1734703315826,39.72121332,187.44,187.3,2.16466425]
[1734703315998,0.28903461,187.43,187.36,39.72121332]
[1734703316204,0.28903461,187.43,187.38,39.72121332]
[1734703316398,0.28903461,187.47,187.38,39.72121332]
[1734703318111,0.28903461,187.47,187.4,39.72121332]
[1734703318311,0.28903461,187.47,187.3,0.12549]
[1734703318312,0.28903461,187.47,187.42,39.72121332]
[1734703318518,0.28903461,187.49,187.42,39.72121332]
[1734703319014,0.28903461,187.49,187.44,39.72121332]
[1734703319218,0.28903461,187.49,187.42,39.72121332]
[1734703319522,0.28903461,187.51,187.45,39.72121332]
[1734703320489,40.01024793,187.52,187.43,39.72121332]
[1734703320699,0.12549,187.51,187.43,39.72121332]
[1734703320999,0.28903461,187.5,187.43,39.72121332]
[1734703321618,0.28903461,187.5,187.35,1.8719]
[1734703321619,39.72121332,187.48,187.35,1.8719]
[1734703321814,0.28903461,187.47,187.38,39.72121332]
[1734703322016,0.28903461,187.47,187.4,39.72121332]
[1734703322397,0.28903461,187.47,187.42,39.72121332]
[1734703322718,20.0,187.45,187.38,39.72121332]
[1734703322942,20.0,187.41,187.36,39.72121332]
[1734703323227,20.0,187.39,187.34,39.72121332]
[1734703323416,0.28903461,187.38,187.28,1.9301]
[1734703323633,0.28903461,187.38,187.33,39.72121332]
[1734703323816,0.28903461,187.38,187.35,39.72121332]
[1734703324000,0.28903461,187.38,187.37,39.72121332]
[1734703324200,0.28903461,187.42,187.37,39.72121332]
[1734703324429,0.28903461,187.42,187.39,39.72121332]
[1734703324905,0.28903461,187.42,187.37,39.72121332]
[1734703325208,20.28903461,187.43,187.37,39.72121332]
[1734703326029,20.28903461,187.43,187.39,39.72121332]
[1734703326407,20.28903461,187.43,187.37,39.72121332]
[1734703326731,20.28903461,187.43,187.32,20.0]
[1734703326732,20.0,187.41,187.33,39.72121332]
[1734703326904,20.0,187.39,187.37,39.72121332]
[1734703327106,0.28903461,187.38,187.37,39.72121332]
[1734703327739,0.28903461,187.42,187.37,39.72121332]
[1734703327920,20.0,187.41,187.37,39.72121332]
[1734703328211,0.28903461,187.4,187.37,39.72121332]
[1734703328724,0.28903461,187.4,187.35,39.72121332]
[1734703329923,20.0,187.35,187.29,39.72121332]
[1734703330126,20.0,187.33,187.29,39.72121332]
[1734703330329,0.28903461,187.32,187.27,39.72121332]
[1734703330500,20.0,187.33,187.31,39.72121332]
[1734703330700,0.28903461,187.32,187.31,39.72121332]
[1734703330924,0.28903461,187.36,187.31,39.72121332]
[1734703331116,0.28903461,187.36,187.33,39.72121332]
[1734703331339,0.28903461,187.36,187.31,39.72121332]
[1734703332537,0.28903461,187.36,187.33,39.72121332]
[1734703332836,20.0,187.39,187.33,39.72121332]
[1734703333034,0.28903461,187.38,187.32,24.67586048]
[1734703333329,20.28903461,187.38,187.32,24.67586048]
[1734703333711,44.67586048,187.36,187.28,24.67586048]
[1734703333934,0.28903461,187.35,187.28,24.67586048]
[1734703334634,20.28903461,187.35,187.28,24.67586048]
[1734703334929,0.28903461,187.35,187.32,24.67586048]
[1734703335246,20.0,187.37,187.32,24.67586048]
[1734703335446,0.28903461,187.36,187.32,24.67586048]
[1734703337135,0.28903461,187.36,187.3,24.67586048]
[1734703337308,20.0,187.35,187.28,24.67586048]
[1734703337510,0.28903461,187.34,187.28,24.67586048]
[1734703337932,20.0,187.33,187.26,24.67586048]
[1734703338232,20.0,187.31,187.24,24.67586048]
[1734703338437,0.28903461,187.3,187.26,24.67586048]
[1734703340012,20.28903461,187.33,187.28,24.67586048]
[1734703340219,20.28903461,187.33,187.26,24.67586048]
[1734703340914,20.28903461,187.33,187.28,24.67586048]
[1734703341734,0.28903461,187.33,187.28,24.67586048]
[1734703342032,6.0354,187.44,187.28,24.67586048]
[1734703342033,24.67586048,187.36,187.28,24.67586048]
[1734703342217,0.28903461,187.35,187.28,24.67586048]
[1734703343125,20.0,187.33,187.28,24.67586048]
[1734703343325,0.28903461,187.32,187.26,24.67586048]
[1734703344013,0.28903461,187.32,187.28,24.67586048]
[1734703344315,0.28903461,187.32,187.26,24.67586048]
[1734703344740,0.28903461,187.32,187.28,24.67586048]
[1734703344920,20.28903461,187.35,187.3,24.67586048]
[1734703345617,0.28903461,187.35,187.3,24.67586048]
[1734703345942,0.28903461,187.37,187.3,24.67586048]
[1734703346143,20.0,187.35,187.3,24.67586048]
[1734703346355,0.28903461,187.34,187.3,24.67586048]
[1734703346713,20.0,187.37,187.3,24.67586048]
[1734703346923,24.96489509,187.36,187.26,24.67586048]
[1734703347113,24.96489509,187.36,187.28,24.67586048]
[1734703347330,0.28903461,187.36,187.23,0.12549]
[1734703347517,0.28903461,187.36,187.31,24.67586048]
[1734703348198,0.28903461,187.39,187.31,24.67586048]
[1734703348646,24.67586048,187.38,187.29,24.67586048]
[1734703348840,0.28903461,187.37,187.29,24.67586048]
[1734703349844,0.28903461,187.37,187.22,6.1745]
[1734703349845,20.0,187.33,187.22,6.1745]
[1734703350052,0.28903461,187.32,187.25,24.67586048]
[1734703350370,0.28903461,187.32,187.29,24.67586048]
[1734703350719,0.28903461,187.35,187.29,24.67586048]
[1734703351242,20.0,187.33,187.27,24.67586048]
[1734703351441,0.28903461,187.32,187.27,24.67586048]
[1734703352547,20.0,187.33,187.29,24.67586048]
[1734703352784,20.0,187.28,187.08,18.40371404]
[1734703352934,24.96489509,187.27,187.19,24.67586048]
[1734703353437,0.32048,187.22,187.19,24.67586048]
[1734703353638,20.32048,187.22,187.17,24.67586048]
[1734703353847,0.28903461,187.21,187.17,24.67586048]
[1734703354340,0.28903461,187.21,187.15,24.67586048]
[1734703354770,24.67586048,187.17,187.09,25.27950628]
[1734703354943,24.96489509,187.16,187.09,0.6036458]
[1734703355250,0.28903461,187.16,187.1,24.67586048]
[1734703355837,0.28903461,187.17,187.1,24.67586048]
[1734703356038,24.67586048,187.16,187.09,0.6036458]
[1734703356237,0.28903461,187.15,187.09,0.6036458]
[1734703357043,0.28903461,187.15,187.1,24.67586048]
[1734703357227,0.28903461,187.17,187.12,24.67586048]
[1734703357749,0.28903461,187.21,187.16,24.67586048]
[1734703358120,0.28903461,187.21,187.18,24.67586048]
[1734703358334,0.32048,187.22,187.2,24.67586048]
[1734703358550,24.99634048,187.22,187.14,24.67586048]
[1734703358850,24.99634048,187.22,187.09,0.6036458]
[1734703358851,0.28903461,187.21,187.16,24.67586048]
[1734703359043,0.28903461,187.21,187.18,24.67586048]
[1734703359244,0.32048,187.22,187.18,24.67586048]
[1734703359621,0.32048,187.22,187.2,24.67586048]
[1734703361026,8e-05,187.22,187.21,0.12549]
[1734703364352,44.67586048,187.34,187.23,0.12549]
[1734703364353,0.28903461,187.33,187.23,0.12549]
[1734703364536,0.28903461,187.33,187.27,24.67586048]
[1734703365352,24.67586048,187.3,187.22,1.8835]
[1734703365658,0.28903461,187.29,187.22,24.67586048]
[1734703366762,0.28903461,187.29,187.24,24.67586048]
[1734703367057,0.28903461,187.31,187.24,24.67586048]
[1734703367557,0.28903461,187.31,187.2,24.67586048]
[1734703367558,0.28903461,187.31,187.26,24.67586048]
[1734703368038,0.28903461,187.33,187.26,24.67586048]
[1734703368255,0.28903461,187.33,187.2,24.67586048]
[1734703368256,0.28903461,187.33,187.28,24.67586048]
[1734703368852,0.28903461,187.35,187.28,24.67586048]
[1734703369562,24.67586048,187.34,187.26,24.67586048]
[1734703369756,0.28903461,187.33,187.26,24.67586048]
[1734703370476,0.28903461,187.33,187.28,24.67586048]
[1734703370632,0.28903461,187.35,187.28,24.67586048]
[1734703371351,24.67586048,187.34,187.26,24.67586048]
[1734703371548,0.28903461,187.33,187.26,24.67586048]
[1734703372239,24.67586048,187.32,187.24,24.67586048]
[1734703372444,0.28903461,187.31,187.24,24.67586048]
[1734703373944,0.28903461,187.31,187.22,24.67586048]
[1734703373945,20.0,187.29,187.22,24.67586048]
[1734703374147,20.0,187.27,187.2,24.67586048]
[1734703374425,24.96489509,187.26,187.18,24.67586048]
[1734703376076,24.96489509,187.26,187.08,8.1845]
[1734703376077,24.67586048,187.24,187.08,8.1845]
[1734703376259,0.28903461,187.23,187.15,24.67586048]
[1734703376557,0.28903461,187.23,187.19,24.67586048]
[1734703376768,0.28903461,187.25,187.19,24.67586048]
[1734703376969,0.28903461,187.25,187.21,24.67586048]
[1734703377447,0.28903461,187.27,187.21,24.67586048]
[1734703377842,0.28903461,187.29,187.23,24.67586048]
[1734703378539,0.28903461,187.29,187.13,0.80125295]
[1734703378540,0.28903461,187.29,187.14,20.0]
[1734703378856,6.2203,187.35,187.22,24.67586048]
[1734703378857,24.67586048,187.3,187.22,24.67586048]
[1734703379071,24.67586048,187.28,187.2,24.67586048]
[1734703379253,0.28903461,187.27,187.2,24.67586048]
[1734703380572,24.67586048,187.26,187.18,24.67586048]
[1734703380744,0.28903461,187.25,187.18,24.67586048]
[1734703381442,24.67586048,187.22,187.14,24.67586048]
[1734703381779,0.28903461,187.21,187.14,24.67586048]
[1734703382354,0.28903461,187.21,187.16,24.67586048]
[1734703382579,0.28903461,187.22,187.16,24.67586048]
[1734703382949,0.28903461,187.22,187.18,24.67586048]
[1734703383151,0.28903461,187.25,187.18,24.67586048]
[1734703383360,24.67586048,187.24,187.16,24.67586048]
[1734703383654,32.09875004,187.4,187.12,0.12549]
[1734703383655,24.67586048,187.3,187.22,24.67586048]
[1734703383859,0.28903461,187.29,187.22,24.67586048]
[1734703385361,24.67586048,187.28,187.2,24.67586048]
[1734703385551,0.28903461,187.27,187.2,24.67586048]
[1734703385862,0.28903461,187.27,187.12,0.92684989]
[1734703385863,24.67586048,187.26,187.18,24.67586048]
[1734703386050,0.28903461,187.25,187.18,24.67586048]
[1734703386556,24.96489509,187.25,187.17,24.67586048]
[1734703386954,24.67586048,187.24,187.16,24.67586048]
[1734703387157,0.28903461,187.23,187.16,24.67586048]
[1734703387662,0.28903461,187.23,187.18,24.67586048]
[1734703387853,20.0,187.21,187.16,24.67586048]
[1734703388166,0.28903461,187.2,187.11,24.67586048]
[1734703388343,20.0,187.15,187.09,25.27950628]
[1734703388543,0.28903461,187.14,187.09,25.27950628]
[1734703388774,0.28903461,187.16,187.09,25.27950628]
[1734703389272,20.0,187.14,187.09,25.27950628]
[1734703389471,0.28903461,187.13,187.09,25.27950628]
[1734703390463,20.0,187.12,187.09,0.6036458]
[1734703390664,24.96489509,187.13,187.09,0.6036458]
[1734703390665,0.28903461,187.11,187.09,0.6036458]
[1734703391161,20.0,187.1,187.09,0.6036458]
[1734703391844,44.67586048,187.1,187.09,0.6036458]
[1734703392858,20.0,187.1,187.09,0.6036458]
[1734703393460,20.0,187.06,186.85,0.80210417]
[1734703393662,24.96489509,187.05,186.97,24.67586048]
[1734703393859,0.28903461,187.05,186.99,24.67586048]
[1734703394071,20.28903461,187.05,187.0,24.67586048]
[1734703394255,20.28903461,187.05,186.95,8.2541]
[1734703394508,24.67586048,187.02,186.95,8.2541]
[1734703394652,0.28903461,187.01,186.95,8.2541]
[1734703394983,0.28903461,187.01,186.94,24.67586048]
[1734703396480,0.28903461,187.01,186.96,24.67586048]
[1734703396671,20.0,187.03,186.98,24.67586048]
[1734703396860,24.67586048,187.06,186.98,24.67586048]
[1734703396861,0.28903461,187.05,186.98,24.67586048]
[1734703397062,24.67586048,187.08,187.0,24.67586048]
[1734703397271,24.67586048,187.12,187.04,24.67586048]
[1734703397484,0.28903461,187.11,187.06,24.67586048]
[1734703397694,0.28903461,187.13,187.06,24.67586048]
[1734703397899,24.67586048,187.08,187.01,1.8935]
[1734703398063,24.67586048,187.06,187.01,1.8935]
[1734703398395,24.67586048,187.11,186.97,24.67586048]
[1734703398396,24.67586048,187.04,186.97,24.67586048]
[1734703398583,0.28903461,187.03,186.96,6.2068]
[1734703399490,24.67586048,187.02,186.96,6.2068]
[1734703399663,24.67586048,187.02,186.92,0.12549]
[1734703399664,0.28903461,187.01,186.92,0.12549]
[1734703399852,0.28903461,187.01,186.97,24.67586048]
[1734703400055,0.28903461,187.03,186.97,24.67586048]
[1734703400483,0.28903461,187.03,186.95,24.67586048]
[1734703401756,24.67586048,187.0,186.93,24.67586048]
[1734703401956,0.28903461,186.99,186.93,24.67586048]
[1734703402783,24.67586048,187.04,186.95,24.67586048]
[1734703402959,0.28903461,187.03,186.97,24.67586048]
[1734703403667,0.28903461,187.03,186.95,24.67586048]
[1734703403877,0.28903461,187.03,186.97,24.67586048]
[1734703404851,24.67586048,187.04,186.94,24.67586048]
[1734703405050,24.67586048,187.01,186.92,24.67586048]
[1734703405249,0.28903461,187.0,186.92,24.67586048]
[1734703405785,0.28903461,187.0,186.94,24.67586048]
[1734703405987,20.0,187.01,186.96,24.67586048]
[1734703406162,24.67586048,187.07,186.98,24.67586048]
[1734703406483,0.28903461,187.06,186.98,24.67586048]
[1734703406879,0.28903461,187.06,187.0,24.67586048]
[1734703407087,24.67586048,187.07,187.0,24.67586048]
[1734703407271,0.28903461,187.06,187.0,24.67586048]
[1734703407474,0.28903461,187.08,187.0,24.67586048]
[1734703407701,24.67586048,187.07,187.0,24.67586048]
[1734703408072,24.67586048,187.05,186.98,24.67586048]
[1734703408281,0.28903461,187.04,186.96,24.67586048]
[1734703408899,0.28903461,187.04,186.98,24.67586048]
[1734703409183,0.28903461,187.04,186.96,24.67586048]
[1734703409388,0.28903461,187.04,186.94,24.67586048]
[1734703409389,24.67586048,187.03,186.94,24.67586048]
[1734703409572,24.67586048,187.03,186.91,0.6861044]
[1734703409573,24.67586048,186.99,186.92,24.67586048]
[1734703409770,0.28903461,186.98,186.92,24.67586048]
[1734703409997,0.28903461,186.98,186.91,0.6861044]
[1734703410185,24.67586048,186.93,186.91,0.6861044]
[1734703410489,0.28903461,186.92,186.91,0.6861044]
[1734703412084,13.3683,187.01,186.91,0.6861044]
[1734703412085,20.28903461,186.94,186.91,0.6861044]
[1734703413078,0.28903461,186.96,186.92,24.67586048]
[1734703413288,0.28903461,187.0,186.92,24.67586048]
[1734703414694,0.28903461,187.0,186.96,24.67586048]
[1734703414876,0.28903461,187.02,186.96,24.67586048]
[1734703415204,0.28903461,187.02,186.94,24.67586048]
[1734703415489,24.67586048,186.95,186.91,0.41512442]
[1734703415794,0.28903461,186.94,186.91,0.41512442]
[1734703416573,20.0,186.92,186.91,0.41512442]
[1734703417541,20.28903461,186.92,186.91,0.41512442]
[1734703417874,20.0,186.9,186.79,24.67586048]
[1734703418075,24.67586048,186.87,186.79,24.67586048]
[1734703418277,0.28903461,186.86,186.68,1.9305]
[1734703418571,0.28903461,186.86,186.78,24.67586048]
[1734703418775,24.67586048,186.85,186.78,24.67586048]
[1734703419002,0.28903461,186.84,186.78,24.67586048]
[1734703419382,24.67586048,186.83,186.74,24.67586048]
[1734703419578,24.67586048,186.81,186.74,24.67586048]
[1734703419774,24.67586048,186.79,186.72,0.6861044]
[1734703420000,24.67586048,186.75,186.72,0.6861044]
[1734703420298,0.28903461,186.74,186.72,0.6861044]
[1734703420681,24.67586048,186.73,186.63,24.67586048]
[1734703420900,24.67586048,186.71,186.63,24.67586048]
[1734703421116,0.28903461,186.7,186.63,24.67586048]
[1734703421284,20.0,186.7,186.63,24.67586048]
[1734703421595,0.28903461,186.69,186.63,24.67586048]
[1734703421924,24.67586048,186.67,186.58,24.67586048]
[1734703422069,0.28903461,186.66,186.58,24.67586048]
[1734703422366,0.28903461,186.66,186.64,24.67586048]
[1734703422578,20.0,186.69,186.62,24.67586048]
[1734703422790,0.28903461,186.68,186.62,24.67586048]
[1734703422992,24.67586048,186.72,186.64,24.67586048]
[1734703423313,0.28903461,186.71,186.57,0.80366135]
[1734703423476,0.28903461,186.71,186.63,24.67586048]
[1734703423993,24.67586048,186.7,186.61,24.67586048]
[1734703424303,0.28903461,186.69,186.63,24.67586048]
[1734703424479,0.28903461,186.71,186.65,24.67586048]
[1734703424680,0.28903461,186.73,186.67,24.67586048]
[1734703424876,51.42476048,186.93,186.71,24.67586048]
[1734703424877,24.96489509,186.82,186.71,24.67586048]
[1734703425095,0.28903461,186.81,186.76,24.67586048]
[1734703425292,24.67586048,186.84,186.76,24.67586048]
[1734703425490,0.28903461,186.83,186.75,24.67586048]
[1734703426092,0.28903461,186.83,186.69,0.12549]
[1734703426093,0.28903461,186.83,186.77,24.67586048]
[1734703426400,0.28903461,186.85,186.81,24.67586048]
[1734703426583,0.28903461,186.85,186.79,24.67586048]
[1734703426792,0.28903461,186.85,186.77,24.67586048]
[1734703426985,24.67586048,186.84,186.69,20.80310673]
[1734703427188,0.28903461,186.83,186.75,24.67586048]
[1734703427391,24.96489509,186.9,186.81,24.67586048]
[1734703427602,0.28903461,186.9,186.83,24.67586048]
[1734703427993,0.28903461,186.9,186.87,24.67586048]
[1734703428196,0.28903461,186.93,186.87,24.67586048]
[1734703428403,0.28903461,186.93,186.85,24.67586048]